[Event "The Kvibergspelen 2024"]
[Site "Kviberg Park Hotel & Conference, Krutvagen 2, Gothenburg, Sweden"]
[Date "2024.09.06"]
[Round "1.20"]
[White "Yang, Mandi"]
[Black "Krilovs, Nikolajs"]
[Result "0-1"]
[TimeControl "15 minutes + 5 seconds per move from move one (Round 1 - 4) / 90 minutes + 30 seconds per move from move one (Round 5 - 8)"]
[WhiteFideId "1774778"]
[BlackFideId "11603100"]
[WhiteElo "1782"]
[BlackElo "2054"]

1. e4 {[%clk 00:15:09]} c6 {[%clk 00:15:08]} {[%emt 00:00:02]} 2. Nc3 {[%clk
00:15:11]} {[%emt 00:00:03]} d5 {[%clk 00:15:11]} {[%emt 00:00:03]} 3. Nf3
{[%clk 00:15:14]} {[%emt 00:00:01]} Bg4 {[%clk 00:15:13]} {[%emt 00:00:02]} 4.
h3 {[%clk 00:15:16]} {[%emt 00:00:04]} Bxf3 {[%clk 00:15:16]} {[%emt 00:00:02]}
5. Qxf3 {[%clk 00:15:18]} {[%emt 00:00:04]} e6 {[%clk 00:15:18]} {[%emt
00:00:02]} 6. Be2 {[%clk 00:15:10]} {[%emt 00:00:13]} d4 {[%clk 00:14:51]}
{[%emt 00:00:32]} 7. Nb1 {[%clk 00:15:08]} {[%emt 00:00:08]} Nd7 {[%clk
00:14:24]} {[%emt 00:00:31]} 8. d3 {[%clk 00:14:49]} {[%emt 00:00:24]} Bd6
{[%clk 00:13:45]} {[%emt 00:00:44]} 9. g3 {[%clk 00:14:16]} {[%emt 00:00:38]}
Ne7 {[%clk 00:13:18]} {[%emt 00:00:31]} 10. O-O {[%clk 00:14:14]} {[%emt
00:00:08]} h5 {[%clk 00:13:10]} 11. Qg2 {[%clk 00:12:45]} {[%emt 00:01:46]} h4
{[%clk 00:12:21]} {[%emt 00:00:54]} 12. g4 {[%clk 00:10:59]} {[%emt 00:01:52]}
e5 {[%clk 00:12:12]} {[%emt 00:00:13]} 13. Nd2 {[%clk 00:10:40]} {[%emt
00:00:25]} Ng6 {[%clk 00:11:51]} {[%emt 00:00:25]} 14. Nc4 {[%clk 00:10:36]}
{[%emt 00:00:09]} Qc7 {[%clk 00:11:38]} {[%emt 00:00:18]} 15. c3 {[%clk
00:10:10]} {[%emt 00:00:33]} c5 {[%clk 00:10:56]} {[%emt 00:00:45]} 16. Bd2
{[%clk 00:09:23]} {[%emt 00:00:52]} b5 {[%clk 00:10:46]} {[%emt 00:00:16]} 17.
Nxd6+ {[%clk 00:09:21]} {[%emt 00:00:06]} Qxd6 {[%clk 00:10:49]} {[%emt
00:00:02]} 18. cxd4 {[%clk 00:09:18]} {[%emt 00:00:08]} cxd4 {[%clk 00:10:51]}
{[%emt 00:00:03]} 19. Rac1 {[%clk 00:09:21]} {[%emt 00:00:03]} O-O {[%clk
00:10:35]} {[%emt 00:00:20]} 20. Bd1 {[%clk 00:08:04]} {[%emt 00:01:22]} Rac8
{[%clk 00:09:25]} {[%emt 00:01:15]} 21. Bb3 {[%clk 00:07:59]} {[%emt 00:00:10]}
Nc5 {[%clk 00:09:26]} {[%emt 00:00:04]} 22. Bb4 {[%clk 00:05:31]} {[%emt
00:02:33]} Nf4 {[%clk 00:08:49]} {[%emt 00:00:42]} 23. Qf3 {[%clk 00:05:34]}
{[%emt 00:00:02]} Nfxd3 {[%clk 00:07:42]} {[%emt 00:01:12]} 24. Bxc5 {[%clk
00:04:11]} {[%emt 00:01:29]} Nxc5 {[%clk 00:07:43]} {[%emt 00:00:03]} 25. Bd5
{[%clk 00:04:13]} {[%emt 00:00:03]} Ne6 {[%clk 00:07:05]} {[%emt 00:00:43]} 26.
Qb3 {[%clk 00:03:22]} {[%emt 00:00:57]} b4 {[%clk 00:06:32]} {[%emt 00:00:37]}
27. Rc4 {[%clk 00:02:10]} {[%emt 00:01:17]} Rxc4 {[%clk 00:06:14]} {[%emt
00:00:23]} 28. Bxc4 {[%clk 00:02:06]} {[%emt 00:00:09]} a5 {[%clk 00:06:05]}
{[%emt 00:00:13]} 29. Bd5 {[%clk 00:01:59]} {[%emt 00:00:14]} Nf4 {[%clk
00:05:57]} {[%emt 00:00:12]} 30. Bc4 {[%clk 00:01:31]} {[%emt 00:00:33]} a4
{[%clk 00:05:17]} {[%emt 00:00:46]} 31. Qf3 {[%clk 00:01:01]} {[%emt 00:00:35]}
Rc8 {[%clk 00:04:34]} {[%emt 00:00:46]} 32. b3 {[%clk 00:01:03]} {[%emt
00:00:04]} axb3 {[%clk 00:04:37]} {[%emt 00:00:03]} 33. axb3 {[%clk 00:01:06]}
{[%emt 00:00:01]} Ra8 {[%clk 00:04:30]} {[%emt 00:00:12]} 34. Rc1 {[%clk
00:00:57]} {[%emt 00:00:15]} d3 {[%clk 00:04:05]} {[%emt 00:00:29]} 35. Kf1
{[%clk 00:00:32]} {[%emt 00:00:29]} d2 {[%clk 00:03:48]} {[%emt 00:00:23]} 36.
Rd1 {[%clk 00:00:32]} {[%emt 00:00:05]} Qd4 {[%clk 00:03:42]} {[%emt 00:00:11]}
37. Qe3 {[%clk 00:00:23]} {[%emt 00:00:14]} Ra1 {[%clk 00:03:44]} {[%emt
00:00:03]} 38. Be2 {[%clk 00:00:12]} {[%emt 00:00:17]} Rxd1+ {[%clk 00:02:50]}
{[%emt 00:00:58]} 39. Bxd1 {[%clk 00:00:15]} {[%emt 00:00:02]} Qxe3 {[%clk
00:02:28]} {[%emt 00:00:28]} 40. fxe3 {[%clk 00:00:19]} {[%emt 00:00:02]} Nxh3
{[%clk 00:02:29]} {[%emt 00:00:02]} 41. Ke2 {[%clk 00:00:19]} {[%emt 00:00:05]}
Ng5 {[%clk 00:02:31]} {[%emt 00:00:03]} 42. Kxd2 {[%clk 00:00:17]} {[%emt
00:00:08]} h3 {[%clk 00:02:29]} {[%emt 00:00:06]} 0-1

[Event "The Kvibergspelen 2024"]
[Site "Kviberg Park Hotel & Conference, Krutvagen 2, Gothenburg, Sweden"]
[Date "2024.09.06"]
[Round "1.21"]
[White "Eriksson, Kristian"]
[Black "Lappas, Georgios"]
[Result "1-0"]
[TimeControl "15 minutes + 5 seconds per move from move one (Round 1 - 4) / 90 minutes + 30 seconds per move from move one (Round 5 - 8)"]
[WhiteFideId "1705172"]
[BlackFideId "1722484"]
[WhiteElo "2051"]
[BlackElo "1773"]

1. e4 {[%clk 00:15:06]} {[%emt 00:00:04]} c5 {[%clk 00:15:07]} {[%emt
00:00:03]} 2. Nc3 {[%clk 00:15:05]} {[%emt 00:00:06]} e6 {[%clk 00:15:05]}
{[%emt 00:00:07]} 3. Nf3 {[%clk 00:15:04]} {[%emt 00:00:06]} Nc6 {[%clk
00:14:21]} {[%emt 00:00:50]} 4. Bb5 {[%clk 00:15:05]} {[%emt 00:00:04]} Nge7
{[%clk 00:14:20]} {[%emt 00:00:05]} 5. O-O {[%clk 00:14:59]} {[%emt 00:00:11]}
a6 {[%clk 00:14:16]} {[%emt 00:00:10]} 6. Bxc6 {[%clk 00:15:02]} {[%emt
00:00:02]} Nxc6 {[%clk 00:14:17]} {[%emt 00:00:04]} 7. d4 {[%clk 00:14:57]}
{[%emt 00:00:10]} cxd4 {[%clk 00:13:58]} {[%emt 00:00:24]} 8. Nxd4 {[%clk
00:14:59]} {[%emt 00:00:02]} Bc5 {[%clk 00:13:20]} {[%emt 00:00:44]} 9. Nb3
{[%clk 00:13:16]} {[%emt 00:01:48]} Be7 {[%clk 00:12:56]} {[%emt 00:00:28]} 10.
Be3 {[%clk 00:12:52]} {[%emt 00:00:29]} b5 {[%clk 00:12:06]} {[%emt 00:00:56]}
11. f4 {[%clk 00:12:34]} {[%emt 00:00:23]} d6 {[%clk 00:11:43]} {[%emt
00:00:27]} 12. Qg4 {[%clk 00:11:36]} {[%emt 00:01:03]} Bf6 {[%clk 00:10:55]}
{[%emt 00:00:54]} 13. Rad1 {[%clk 00:10:29]} {[%emt 00:01:11]} h5 {[%clk
00:10:11]} {[%emt 00:00:49]} 14. Qe2 {[%clk 00:10:00]} {[%emt 00:00:34]} Qc7
{[%clk 00:08:49]} {[%emt 00:01:27]} 15. Rd2 {[%clk 00:09:17]} {[%emt 00:00:48]}
Bb7 {[%clk 00:07:20]} {[%emt 00:01:34]} 16. Rfd1 {[%clk 00:09:05]} {[%emt
00:00:17]} O-O-O {[%clk 00:07:03]} {[%emt 00:00:22]} 17. Qf2 {[%clk 00:08:26]}
{[%emt 00:00:45]} Qe7 {[%clk 00:05:50]} {[%emt 00:01:18]} 18. Bb6 {[%clk
00:08:06]} {[%emt 00:00:24]} Ne5 {[%clk 00:01:28]} {[%emt 00:04:28]} 19. Bxd8
{[%clk 00:07:03]} {[%emt 00:01:08]} Rxd8 {[%clk 00:01:12]} {[%emt 00:00:21]} 20.
fxe5 {[%clk 00:07:03]} {[%emt 00:00:05]} Bxe5 {[%clk 00:01:13]} {[%emt
00:00:03]} 21. Na5 {[%clk 00:06:42]} {[%emt 00:00:26]} Qc7 {[%clk 00:00:30]}
{[%emt 00:00:48]} 22. Nxb7 {[%clk 00:06:32]} {[%emt 00:00:15]} Qxb7 {[%clk
00:00:34]} {[%emt 00:00:02]} 23. Qe3 {[%clk 00:05:53]} {[%emt 00:00:43]} Qc7
{[%clk 00:00:25]} {[%emt 00:00:14]} 24. Ne2 {[%clk 00:05:42]} 1-0

[Event "The Kvibergspelen 2024"]
[Site "Kviberg Park Hotel & Conference, Krutvagen 2, Gothenburg, Sweden"]
[Date "2024.09.06"]
[Round "2.1"]
[White "Kucuksari, Kaan"]
[Black "Lilliehook, Victor"]
[Result "1-0"]
[TimeControl "15 minutes + 5 seconds per move from move one (Round 1 - 4) / 90 minutes + 30 seconds per move from move one (Round 5 - 8)"]
[WhiteTitle "IM"]
[WhiteFideId "6380166"]
[BlackFideId "1752103"]
[WhiteElo "2455"]
[BlackElo "2017"]

1. d4 {[%clk 00:15:09]} d5 {[%clk 00:15:10]} {[%emt 00:00:01]} 2. Nf3 {[%clk
00:15:12]} {[%emt 00:00:01]} e6 {[%clk 00:15:11]} {[%emt 00:00:03]} 3. Bf4
{[%clk 00:15:16]} {[%emt 00:00:02]} c5 {[%clk 00:15:12]} {[%emt 00:00:05]} 4.
e3 {[%clk 00:15:19]} {[%emt 00:00:01]} cxd4 {[%clk 00:15:15]} {[%emt 00:00:03]}
5. exd4 {[%clk 00:15:22]} {[%emt 00:00:01]} Nc6 {[%clk 00:15:20]} 6. c3 {[%clk
00:15:24]} {[%emt 00:00:03]} Bd6 {[%clk 00:15:24]} {[%emt 00:00:01]} 7. Bxd6
{[%clk 00:15:25]} {[%emt 00:00:05]} Qxd6 {[%clk 00:15:27]} {[%emt 00:00:01]} 8.
Bd3 {[%clk 00:15:27]} {[%emt 00:00:02]} Nge7 {[%clk 00:15:24]} {[%emt
00:00:09]} 9. O-O {[%clk 00:15:30]} {[%emt 00:00:03]} f6 {[%clk 00:14:48]}
{[%emt 00:00:40]} 10. Re1 {[%clk 00:15:30]} {[%emt 00:00:04]} O-O {[%clk
00:14:42]} {[%emt 00:00:11]} 11. Qc2 {[%clk 00:15:25]} {[%emt 00:00:11]} Kh8
{[%clk 00:13:29]} {[%emt 00:01:18]} 12. Qe2 {[%clk 00:15:03]} {[%emt 00:00:27]}
Bd7 {[%clk 00:11:29]} {[%emt 00:02:05]} 13. Na3 {[%clk 00:15:07]} {[%emt
00:00:02]} a6 {[%clk 00:11:04]} {[%emt 00:00:30]} 14. c4 {[%clk 00:14:56]}
{[%emt 00:00:15]} Nb4 {[%clk 00:09:04]} {[%emt 00:02:04]} 15. c5 {[%clk
00:14:43]} {[%emt 00:00:19]} Qc7 {[%clk 00:08:44]} {[%emt 00:00:25]} 16. Nc2
{[%clk 00:14:31]} {[%emt 00:00:17]} Nxd3 {[%clk 00:07:31]} {[%emt 00:01:18]} 17.
Qxd3 {[%clk 00:14:35]} {[%emt 00:00:01]} Rae8 {[%clk 00:07:35]} {[%emt
00:00:01]} 18. Qc3 {[%clk 00:14:12]} {[%emt 00:00:29]} Ng6 {[%clk 00:06:44]}
{[%emt 00:00:55]} 19. Nb4 {[%clk 00:14:12]} {[%emt 00:00:05]} Bc6 {[%clk
00:04:44]} {[%emt 00:02:04]} 20. Nd3 {[%clk 00:14:11]} {[%emt 00:00:08]} Nf4
{[%clk 00:04:13]} {[%emt 00:00:36]} 21. Rad1 {[%clk 00:13:12]} {[%emt
00:01:03]} g5 {[%clk 00:03:15]} {[%emt 00:01:04]} 22. Nxf4 {[%clk 00:13:03]}
{[%emt 00:00:13]} Qxf4 {[%clk 00:03:16]} {[%emt 00:00:04]} 23. Rd3 {[%clk
00:13:00]} {[%emt 00:00:09]} g4 {[%clk 00:02:55]} {[%emt 00:00:26]} 24. g3
{[%clk 00:13:03]} {[%emt 00:00:01]} Qc7 {[%clk 00:02:24]} {[%emt 00:00:36]} 25.
Nh4 {[%clk 00:13:07]} {[%emt 00:00:01]} e5 {[%clk 00:02:14]} {[%emt 00:00:15]}
26. Rde3 {[%clk 00:13:09]} {[%emt 00:00:03]} e4 {[%clk 00:01:40]} {[%emt
00:00:40]} 27. Ng2 {[%clk 00:12:36]} {[%emt 00:00:37]} h5 {[%clk 00:01:15]}
{[%emt 00:00:30]} 28. Nf4 {[%clk 00:12:39]} {[%emt 00:00:02]} Qh7 {[%clk
00:00:41]} {[%emt 00:00:40]} 29. h4 {[%clk 00:12:43]} {[%emt 00:00:01]} Qf5
{[%clk 00:00:22]} {[%emt 00:00:23]} 30. b4 {[%clk 00:12:45]} {[%emt 00:00:04]}
Kh7 {[%clk 00:00:21]} {[%emt 00:00:06]} 31. Qb3 {[%clk 00:12:48]} {[%emt
00:00:02]} Kh6 {[%clk 00:00:10]} {[%emt 00:00:15]} 32. a4 {[%clk 00:12:52]}
{[%emt 00:00:02]} Qd7 {[%clk 00:00:14]} 33. Ra1 {[%clk 00:12:28]} {[%emt
00:00:28]} Rb8 {[%clk 00:00:11]} {[%emt 00:00:08]} 34. Qd1 {[%clk 00:12:27]}
{[%emt 00:00:06]} b5 {[%clk 00:00:09]} {[%emt 00:00:08]} 35. cxb6 {[%clk
00:11:52]} {[%emt 00:00:39]} Rxb6 {[%clk 00:00:12]} {[%emt 00:00:04]} 36. Qd2
{[%clk 00:11:51]} {[%emt 00:00:05]} Qe7 {[%clk 00:00:07]} {[%emt 00:00:11]} 37.
Rc3 {[%clk 00:11:52]} {[%emt 00:00:03]} Rxb4 {[%clk 00:00:06]} {[%emt
00:00:06]} 38. Nxd5+ {[%clk 00:11:53]} {[%emt 00:00:04]} e3 {[%clk 00:00:09]}
{[%emt 00:00:02]} 39. Rxe3 {[%clk 00:11:52]} {[%emt 00:00:06]} Qb7 {[%clk
00:00:06]} {[%emt 00:00:09]} 40. Re7+ {[%clk 00:11:53]} {[%emt 00:00:03]} Kg6
{[%clk 00:00:09]} {[%emt 00:00:01]} 41. Nf4+ {[%clk 00:11:50]} {[%emt
00:00:09]} Kf5 {[%emt 00:00:02]} 42. Qc2+ {[%clk 00:11:47]} {[%emt 00:00:07]}
Be4 {[%clk 00:00:15]} {[%emt 00:00:04]} 43. Qc5+ {[%clk 00:11:48]} {[%emt
00:00:03]} 1-0

[Event "The Kvibergspelen 2024"]
[Site "Kviberg Park Hotel & Conference, Krutvagen 2, Gothenburg, Sweden"]
[Date "2024.09.06"]
[Round "2.2"]
[White "Wickstrom, Carina"]
[Black "Sorensen, Hampus"]
[Result "0-1"]
[TimeControl "15 minutes + 5 seconds per move from move one (Round 1 - 4) / 90 minutes + 30 seconds per move from move one (Round 5 - 8)"]
[BlackTitle "IM"]
[WhiteFideId "1743201"]
[BlackFideId "8703884"]
[WhiteElo "2015"]
[BlackElo "2420"]

1. Nf3 {[%clk 00:15:08]} Nf6 {[%clk 00:14:54]} {[%emt 00:00:16]} 2. g3 {[%clk
00:15:12]} {[%emt 00:00:02]} b6 {[%clk 00:14:37]} {[%emt 00:00:22]} 3. Bg2
{[%clk 00:15:13]} {[%emt 00:00:04]} Bb7 {[%clk 00:14:40]} {[%emt 00:00:02]} 4.
O-O {[%clk 00:15:15]} {[%emt 00:00:03]} g6 {[%clk 00:14:36]} {[%emt 00:00:09]}
5. d3 {[%clk 00:15:05]} {[%emt 00:00:15]} Bg7 {[%clk 00:13:50]} {[%emt
00:00:51]} 6. e4 {[%clk 00:14:51]} {[%emt 00:00:19]} d6 {[%clk 00:13:49]}
{[%emt 00:00:06]} 7. Nc3 {[%clk 00:14:42]} {[%emt 00:00:15]} O-O {[%clk
00:13:44]} {[%emt 00:00:08]} 8. h3 {[%clk 00:13:46]} {[%emt 00:01:01]} c5
{[%clk 00:13:35]} {[%emt 00:00:14]} 9. Nh4 {[%clk 00:12:28]} {[%emt 00:01:24]}
Nc6 {[%clk 00:10:28]} {[%emt 00:03:11]} 10. Be3 {[%clk 00:12:00]} {[%emt
00:00:34]} Rb8 {[%clk 00:10:02]} {[%emt 00:00:32]} 11. Qd2 {[%clk 00:11:49]}
{[%emt 00:00:15]} Re8 {[%clk 00:09:29]} {[%emt 00:00:38]} 12. f4 {[%clk
00:11:35]} {[%emt 00:00:19]} a6 {[%clk 00:09:24]} {[%emt 00:00:11]} 13. a4
{[%clk 00:11:28]} {[%emt 00:00:11]} Nd4 {[%clk 00:09:19]} {[%emt 00:00:10]} 14.
f5 {[%clk 00:10:01]} {[%emt 00:01:32]} b5 {[%clk 00:08:46]} {[%emt 00:00:37]}
15. axb5 {[%clk 00:09:41]} {[%emt 00:00:24]} axb5 {[%clk 00:08:50]} {[%emt
00:00:02]} 16. Ra7 {[%clk 00:08:19]} {[%emt 00:01:27]} b4 {[%clk 00:08:00]}
{[%emt 00:00:55]} 17. Nd5 {[%clk 00:06:58]} {[%emt 00:01:26]} Bxd5 {[%clk
00:05:44]} {[%emt 00:02:21]} 18. exd5 {[%clk 00:06:59]} {[%emt 00:00:03]} Qb6
{[%clk 00:05:37]} {[%emt 00:00:12]} 19. Rfa1 {[%clk 00:06:50]} {[%emt
00:00:15]} Rb7 {[%clk 00:04:52]} {[%emt 00:00:50]} 20. R7a6 {[%clk 00:06:46]}
{[%emt 00:00:09]} Qd8 {[%clk 00:04:42]} {[%emt 00:00:14]} 21. fxg6 {[%clk
00:05:03]} {[%emt 00:01:49]} hxg6 {[%clk 00:04:45]} {[%emt 00:00:03]} 22. Nf3
{[%clk 00:04:32]} {[%emt 00:00:35]} Nxf3+ {[%clk 00:03:31]} {[%emt 00:01:18]}
23. Bxf3 {[%clk 00:04:36]} {[%emt 00:00:01]} Nd7 {[%clk 00:03:30]} {[%emt
00:00:07]} 24. d4 {[%clk 00:03:25]} {[%emt 00:01:16]} cxd4 {[%clk 00:03:22]}
{[%emt 00:00:13]} 25. Bxd4 {[%clk 00:03:29]} {[%emt 00:00:01]} Bxd4+ {[%clk
00:03:22]} {[%emt 00:00:05]} 26. Qxd4 {[%clk 00:03:32]} {[%emt 00:00:02]} Ne5
{[%clk 00:03:24]} {[%emt 00:00:03]} 27. Bg2 {[%clk 00:03:29]} {[%emt 00:00:08]}
Qc7 {[%clk 00:03:18]} {[%emt 00:00:11]} 28. Qd2 {[%clk 00:03:00]} {[%emt
00:00:34]} Qc4 {[%clk 00:03:03]} {[%emt 00:00:20]} 29. R1a4 {[%clk 00:02:01]}
{[%emt 00:01:03]} Rc8 {[%clk 00:02:43]} {[%emt 00:00:26]} 30. c3 {[%clk
00:01:59]} {[%emt 00:00:08]} Qc5+ {[%clk 00:02:35]} {[%emt 00:00:12]} 31. Kh2
{[%clk 00:01:59]} {[%emt 00:00:06]} bxc3 {[%clk 00:02:30]} {[%emt 00:00:09]} 32.
bxc3 {[%clk 00:01:58]} {[%emt 00:00:06]} Qxc3 {[%clk 00:02:30]} {[%emt
00:00:04]} 33. Qf4 {[%clk 00:01:35]} {[%emt 00:00:28]} Rb2 {[%clk 00:02:10]}
{[%emt 00:00:25]} 34. Ra2 {[%clk 00:00:57]} {[%emt 00:00:44]} Nf3+ {[%clk
00:01:39]} {[%emt 00:00:36]} 35. Qxf3 {[%clk 00:00:34]} {[%emt 00:00:28]} Qxf3
{[%clk 00:01:42]} {[%emt 00:00:02]} 36. Rxb2 {[%clk 00:00:37]} {[%emt
00:00:02]} Qd3 {[%clk 00:01:28]} {[%emt 00:00:19]} 37. Ra4 {[%clk 00:00:20]}
{[%emt 00:00:22]} Rc3 {[%clk 00:01:23]} {[%emt 00:00:09]} 38. Rg4 {[%clk
00:00:16]} {[%emt 00:00:10]} Kg7 {[%clk 00:01:22]} {[%emt 00:00:06]} 39. Rf2
{[%clk 00:00:00]} {[%emt 00:00:18]} 0-1

[Event "The Kvibergspelen 2024"]
[Site "Kviberg Park Hotel & Conference, Krutvagen 2, Gothenburg, Sweden"]
[Date "2024.09.06"]
[Round "2.3"]
[White "Arman, Deniz"]
[Black "Ostensson, Julia"]
[Result "1-0"]
[TimeControl "15 minutes + 5 seconds per move from move one (Round 1 - 4) / 90 minutes + 30 seconds per move from move one (Round 5 - 8)"]
[WhiteTitle "FM"]
[WhiteFideId "6302106"]
[BlackFideId "1747703"]
[WhiteElo "2348"]
[BlackElo "2016"]

1. e4 {[%clk 00:15:06]} {[%emt 00:00:02]} c5 {[%clk 00:15:09]} {[%emt
00:00:02]} 2. Nf3 {[%clk 00:15:00]} {[%emt 00:00:11]} e6 {[%clk 00:15:05]}
{[%emt 00:00:09]} 3. d4 {[%clk 00:14:44]} {[%emt 00:00:21]} cxd4 {[%clk
00:15:09]} {[%emt 00:00:02]} 4. Nxd4 {[%clk 00:14:47]} a6 {[%clk 00:15:09]}
{[%emt 00:00:05]} 5. Nc3 {[%clk 00:14:19]} {[%emt 00:00:33]} b5 {[%clk
00:15:06]} {[%emt 00:00:09]} 6. Bd3 {[%clk 00:13:28]} {[%emt 00:00:56]} Bb7
{[%clk 00:14:36]} {[%emt 00:00:34]} 7. Qe2 {[%clk 00:13:13]} {[%emt 00:00:21]}
Nc6 {[%clk 00:13:35]} {[%emt 00:01:06]} 8. Nxc6 {[%clk 00:11:57]} {[%emt
00:01:21]} Bxc6 {[%clk 00:13:37]} {[%emt 00:00:04]} 9. O-O {[%clk 00:10:35]}
{[%emt 00:01:26]} Qb8 {[%clk 00:10:43]} {[%emt 00:02:58]} 10. f4 {[%clk
00:10:24]} {[%emt 00:00:16]} Bc5+ {[%clk 00:09:25]} {[%emt 00:01:23]} 11. Kh1
{[%clk 00:09:44]} {[%emt 00:00:45]} b4 {[%clk 00:07:17]} {[%emt 00:02:14]} 12.
Nd5 {[%clk 00:08:31]} {[%emt 00:01:18]} Nf6 {[%clk 00:05:14]} {[%emt 00:02:07]}
13. Nxf6+ {[%clk 00:07:34]} {[%emt 00:01:02]} gxf6 {[%clk 00:05:18]} {[%emt
00:00:02]} 14. Be3 {[%clk 00:05:21]} {[%emt 00:02:16]} Bxe3 {[%clk 00:03:30]}
{[%emt 00:01:55]} 15. Qxe3 {[%clk 00:05:24]} {[%emt 00:00:01]} Qa7 {[%clk
00:02:31]} {[%emt 00:01:05]} 16. Qxa7 {[%clk 00:05:04]} {[%emt 00:00:24]} Rxa7
{[%clk 00:02:35]} {[%emt 00:00:02]} 17. a3 {[%clk 00:05:07]} {[%emt 00:00:02]}
bxa3 {[%clk 00:02:16]} {[%emt 00:00:25]} 18. Rxa3 {[%clk 00:05:10]} {[%emt
00:00:01]} Ke7 {[%emt 00:00:09]} 19. b4 {[%clk 00:02:16]} {[%emt 00:02:55]}
Raa8 {[%clk 00:00:38]} {[%emt 00:01:44]} 20. Kg1 {[%clk 00:02:04]} {[%emt
00:00:16]} Rhg8 {[%clk 00:00:41]} {[%emt 00:00:02]} 21. g3 {[%clk 00:00:33]}
{[%emt 00:01:36]} h5 {[%clk 00:00:45]} {[%emt 00:00:01]} 22. Kf2 {[%clk
00:00:27]} {[%emt 00:00:10]} h4 {[%clk 00:00:45]} {[%emt 00:00:06]} 23. Rg1
{[%clk 00:00:31]} hxg3+ {[%clk 00:00:46]} {[%emt 00:00:04]} 24. Rxg3 {[%clk
00:00:35]} {[%emt 00:00:01]} Rh8 {[%clk 00:00:39]} {[%emt 00:00:12]} 25. h3
{[%clk 00:00:39]} Rh4 {[%clk 00:00:43]} {[%emt 00:00:01]} 26. Ke3 {[%clk
00:00:43]} {[%emt 00:00:01]} d6 {[%clk 00:00:06]} {[%emt 00:00:42]} 27. Ra5
{[%clk 00:00:13]} {[%emt 00:00:34]} Rhh8 {[%clk 00:00:07]} {[%emt 00:00:04]} 28.
c3 {[%clk 00:00:16]} {[%emt 00:00:02]} Rab8 {[%clk 00:00:07]} {[%emt 00:00:06]}
29. Rxa6 {[%clk 00:00:19]} {[%emt 00:00:02]} Bd7 {[%clk 00:00:06]} {[%emt
00:00:05]} 30. Ra5 {[%clk 00:00:10]} {[%emt 00:00:15]} f5 {[%clk 00:00:07]}
{[%emt 00:00:04]} 31. exf5 {[%clk 00:00:13]} {[%emt 00:00:03]} Kf6 {[%clk
00:00:10]} {[%emt 00:00:02]} 32. fxe6 {[%clk 00:00:15]} {[%emt 00:00:02]} Bxe6
{[%clk 00:00:09]} {[%emt 00:00:04]} 33. f5 {[%clk 00:00:16]} {[%emt 00:00:06]}
Bd7 {[%clk 00:00:10]} {[%emt 00:00:04]} 34. Rd5 {[%clk 00:00:16]} {[%emt
00:00:04]} Rb6 {[%clk 00:00:14]} {[%emt 00:00:02]} 35. Kd2 {[%clk 00:00:17]}
{[%emt 00:00:04]} Ba4 {[%clk 00:00:11]} {[%emt 00:00:09]} 36. b5 {[%clk
00:00:18]} {[%emt 00:00:04]} Bb3 {[%clk 00:00:13]} {[%emt 00:00:02]} 37. c4
{[%clk 00:00:21]} {[%emt 00:00:01]} Rc8 {[%clk 00:00:16]} {[%emt 00:00:03]} 38.
Rd4 {[%clk 00:00:23]} {[%emt 00:00:03]} Ba4 {[%clk 00:00:08]} {[%emt 00:00:14]}
39. Be2 {[%clk 00:00:21]} {[%emt 00:00:06]} Rb7 {[%clk 00:00:08]} {[%emt
00:00:05]} 40. Ra3 {[%clk 00:00:20]} {[%emt 00:00:05]} Ra7 {[%clk 00:00:08]}
{[%emt 00:00:06]} 41. Rxd6+ {[%clk 00:00:11]} {[%emt 00:00:13]} Ke5 {[%clk
00:00:12]} {[%emt 00:00:02]} 42. Rd5+ {[%clk 00:00:15]} {[%emt 00:00:01]} Ke4
{[%clk 00:00:15]} {[%emt 00:00:03]} 43. Re3+ {[%clk 00:00:10]} {[%emt
00:00:09]} Kf4 {[%clk 00:00:18]} {[%emt 00:00:02]} 44. Rd4+ {[%clk 00:00:06]}
{[%emt 00:00:10]} Kg5 {[%clk 00:00:21]} {[%emt 00:00:01]} 45. Ra3 {[%clk
00:00:07]} {[%emt 00:00:03]} Rh8 {[%clk 00:00:19]} {[%emt 00:00:07]} 46. b6
{[%clk 00:00:11]} {[%emt 00:00:02]} Ra5 {[%clk 00:00:22]} {[%emt 00:00:01]} 47.
Rd5 {[%clk 00:00:14]} {[%emt 00:00:02]} Rxd5+ {[%clk 00:00:17]} {[%emt
00:00:10]} 48. cxd5 {[%clk 00:00:17]} {[%emt 00:00:01]} Bd7 {[%clk 00:00:15]}
{[%emt 00:00:07]} 49. Ra7 {[%clk 00:00:06]} {[%emt 00:00:17]} Bxf5 50. Rxf7 Rb8
{[%clk 00:00:19]} {[%emt 00:00:02]} 51. b7 {[%clk 00:00:13]} {[%emt 00:00:02]}
Be4 {[%clk 00:00:23]} 52. Bc4 {[%clk 00:00:17]} {[%emt 00:00:02]} Kg6 {[%clk
00:00:24]} {[%emt 00:00:03]} 53. Rc7 {[%clk 00:00:20]} {[%emt 00:00:02]} Kf5
{[%clk 00:00:23]} {[%emt 00:00:07]} 54. Ke3 {[%clk 00:00:23]} Bg2 {[%clk
00:00:23]} {[%emt 00:00:05]} 55. Kd4 {[%clk 00:00:26]} {[%emt 00:00:03]} Bxh3
{[%clk 00:00:15]} {[%emt 00:00:13]} 56. d6 {[%clk 00:00:27]} {[%emt 00:00:04]}
Kf6 {[%clk 00:00:17]} {[%emt 00:00:03]} 57. Rf7+ {[%clk 00:00:27]} {[%emt
00:00:05]} Kg6 {[%clk 00:00:20]} {[%emt 00:00:02]} 58. Bd5 {[%clk 00:00:28]}
{[%emt 00:00:04]} Bg2 {[%clk 00:00:17]} {[%emt 00:00:08]} 59. Re7 {[%clk
00:00:28]} {[%emt 00:00:05]} Bh3 {[%clk 00:00:14]} {[%emt 00:00:08]} 60. d7
{[%clk 00:00:29]} {[%emt 00:00:04]} Rd8 {[%clk 00:00:11]} {[%emt 00:00:08]} 61.
Re8 {[%clk 00:00:29]} {[%emt 00:00:05]} Rxd7 {[%clk 00:00:07]} {[%emt
00:00:09]} 62. b8=Q {[%clk 00:00:31]} 1-0